Workbook

Sheet Sheet1
A1: 三穗县事业单位2025年公开招聘工作人员综合成绩排名暨入围体检人员一览表
A2: 序号 | B2: 姓名 | C2: 报考单位名称 | D2: 职位代码 | E2: 笔试成绩 | H2: 面试成绩 | J2: 综合成绩 | K2: 综合排名 | L2: 是否入围体检 | M2: 备注
E3: 笔试总分 | F3: 笔试环节成绩 | G3: 占综合成绩50% | H3: 面试环节成绩 | I3: 占综合成绩50%
A4: 1 | B4: 刘炳丞 | C4: 三穗县自然资源交易中心 | D4: 22608029201 | E4: 212.50 | F4: =ROUND(E4/3,2) -> 70.83 | G4: =ROUND(F4*0.5,2) -> 35.42 | H4: 75.80 | I4: =ROUND(H4*0.5,2) -> 37.90 | J4: =G4+I4 -> 73.32 | K4: 1 | L4: 是
A5: 2 | B5: 唐锐 | C5: 三穗县自然资源交易中心 | D5: 22608029201 | E5: 187.00 | F5: =ROUND(E5/3,2) -> 62.33 | G5: =ROUND(F5*0.5,2) -> 31.17 | H5: 77.80 | I5: =ROUND(H5*0.5,2) -> 38.90 | J5: =G5+I5 -> 70.07 | K5: 2
A6: 3 | B6: 杨琪 | C6: 三穗县自然资源交易中心 | D6: 22608029201 | E6: 219.00 | F6: =ROUND(E6/3,2) -> 73.00 | G6: =ROUND(F6*0.5,2) -> 36.50 | H6: 放弃 | I6: 0.00 | J6: 36.50 | K6: 3
A7: 4 | B7: 杨艳丽 | C7: 三穗县商务流通促进中心 | D7: 22608029301 | E7: 210.00 | F7: =ROUND(E7/3,2) -> 70.00 | G7: =ROUND(F7*0.5,2) -> 35.00 | H7: 77.80 | I7: =ROUND(H7*0.5,2) -> 38.90 | J7: =G7+I7 -> 73.90 | K7: 1 | L7: 是
A8: 5 | B8: 陆春燕 | C8: 三穗县商务流通促进中心 | D8: 22608029301 | E8: 187.50 | F8: 62.50 | G8: 31.25 | H8: 75.80 | I8: 37.90 | J8: 69.15 | K8: 2
A9: 6 | B9: 刘彦林 | C9: 三穗县商务流通促进中心 | D9: 22608029301 | E9: 171.50 | F9: 57.17 | G9: 28.59 | H9: 74.60 | I9: 37.30 | J9: 65.89 | K9: 3
A10: 7 | B10: 周垚垚 | C10: 三穗县国有林场 | D10: 22608029401 | E10: 192.50 | F10: 64.17 | G10: 32.09 | H10: 77.20 | I10: 38.60 | J10: 70.69 | K10: 1 | L10: 是
A11: 8 | B11: 蒋雪娇 | C11: 三穗县国有林场 | D11: 22608029401 | E11: 180.00 | F11: 60.00 | G11: 30.00 | H11: 79.20 | I11: 39.60 | J11: 69.60 | K11: 2
A12: 9 | B12: 吴重杨 | C12: 三穗县国有林场 | D12: 22608029401 | E12: 166.50 | F12: 55.50 | G12: 27.75 | H12: 74.80 | I12: 37.40 | J12: 65.15 | K12: 3
A13: 10 | B13: 万祖明 | C13: 三穗良上镇农业农村综合服务中心 | D13: 22608029501 | E13: 147.00 | F13: 49.00 | G13: 24.50 | H13: 76.00 | I13: 38.00 | J13: 62.50 | K13: 1 | L13: 是
A14: 11 | B14: 王树超 | C14: 三穗良上镇农业农村综合服务中心 | D14: 22608029501 | E14: 145.00 | F14: 48.33 | G14: 24.17 | H14: 75.00 | I14: 37.50 | J14: 61.67 | K14: 2
A15: 12 | B15: 唐崇鹏 | C15: 三穗良上镇农业农村综合服务中心 | D15: 22608029501 | E15: 153.00 | F15: 51.00 | G15: 25.50 | H15: 放弃 | I15: 0.00 | J15: 25.50 | K15: 3
A16: 13 | B16: 田锦梅 | C16: 三穗县桐林镇综合治理服务中心 | D16: 22608029601 | E16: 191.50 | F16: 63.83 | G16: 31.92 | H16: 81.20 | I16: =ROUND(H16*0.5,2) -> 40.60 | J16: =G16+I16 -> 72.52 | K16: 1 | L16: 是
A17: 14 | B17: 杨倩 | C17: 三穗县桐林镇综合治理服务中心 | D17: 22608029601 | E17: 206.00 | F17: 68.67 | G17: 34.34 | H17: 74.80 | I17: =ROUND(H17*0.5,2) -> 37.40 | J17: =G17+I17 -> 71.74 | K17: 2
A18: 15 | B18: 张杰 | C18: 三穗县桐林镇综合治理服务中心 | D18: 22608029601 | E18: 198.00 | F18: 66.00 | G18: 33.00 | H18: 76.40 | I18: =ROUND(H18*0.5,2) -> 38.20 | J18: =G18+I18 -> 71.20 | K18: 3
A19: 16 | B19: 冉梓君 | C19: 三穗县长吉镇综合治理服务中心 | D19: 22608029701 | E19: 211.50 | F19: 70.50 | G19: 35.25 | H19: 78.40 | I19: 39.20 | J19: 74.45 | K19: 1 | L19: 是
A20: 17 | B20: 陈倩 | C20: 三穗县长吉镇综合治理服务中心 | D20: 22608029701 | E20: 200.00 | F20: 66.67 | G20: 33.34 | H20: 75.40 | I20: 37.70 | J20: 71.04 | K20: 2
A21: 18 | B21: 王树丹 | C21: 三穗县长吉镇综合治理服务中心 | D21: 22608029701 | E21: 198.50 | F21: 66.17 | G21: 33.09 | H21: 70.80 | I21: 35.40 | J21: 68.49 | K21: 3

Sheet Sheet2

Sheet Sheet3
